[Event "50th La Roda Open 2024"]
[Site "La Roda"]
[Date "2024.03.30"]
[Round "7.6"]
[White "Elias Reyes, Jorge Roberto"]
[Black "Liu, Zexu"]
[Result "1/2-1/2"]
[ECO "C45"]
[WhiteElo "2473"]
[BlackElo "2325"]
[Annotator "TA"]
[PlyCount "124"]
[EventDate "2024.03.27"]
[EventType "swiss"]
[EventCountry "ESP"]
[SourceTitle "playchess.com"]
[Source "ChessBase"]
[SourceQuality "1"]
[TimeControl "5400+30"]

{[%evp 56,124,-197,-216,-172,-206,-199,-404,-309,-445,-318,-314,-308,-348,-80,-272,-286,-286,-267,-245,-170,-158,-58,-53,-66,-93,-93,-147,-50,-70,-70,-91,-74,-125,-114,-142,-148,-229,-54,-75,-63,-57,-11,-16,0,-11,-13,-13,-13,-36,-30,-49,0,0,0,0,0,-60,-58,-54,-52,-46,-45,-55,-60,-58,-63,-59,0,-11,832]} 1. e4 {[%emt 0:01:52]} e5 {[%emt 0:00:02]} 2. Nf3 {[%emt 0:00:14]} Nc6 {[%emt 0:00:04]} 3. d4 {[%emt 0:00:34]} exd4 {[%emt 0:00:04]} 4. Nxd4 {[%emt 0:00:04]} Qf6 {[%emt 0:00:44]} 5. Nf3 {[%emt 0:03:36]} Bb4+ {[%emt 0:03:33]} 6. c3 {[%emt 0:02:08]} Bc5 {[%emt 0:00:44]} 7. Be2 {[%emt 0:09:14]} h6 {[%emt 0:02:52]} 8. Nbd2 {[%emt 0:03:11]} d6 {[%emt 0:02:09]} 9. O-O {[%emt 0:02:21]} Nge7 {[%emt 0:00:49]} 10. e5 {[%emt 0:08:38]} Qg6 {[%emt 0:03:22]} 11. Nb3 {[%emt 0:03:56]} Bb6 {[%emt 0:03:28]} 12. exd6 {[%emt 0:02:00]} cxd6 {[%emt 0:00:51]} 13. Bf4 {[%emt 0:01:12]} d5 {[%emt 0:00:44]} 14. Qd2 {[%emt 0:02:54]} O-O {[%emt 0:00:32]} 15. Rae1 {[%emt 0:03:23]} Qf6 {[%emt 0:02:29]} 16. Bd3 {[%emt 0:02:48]} Ng6 {[%emt 0:06:55]} 17. Bxg6 {[%emt 0:18:59]} Qxg6 {[%emt 0:00:15]} 18. Ne5 {[%emt 0:01:04]} Qf6 {[%emt 0:06:09]} 19. a4 {[%emt 0:06:55]} a5 {[%emt 0:09:19]} 20. Nd4 {[%emt 0:00:24]} Nxd4 {[%emt 0:06:42]} 21. cxd4 {[%emt 0:00:01]} Bf5 {[%emt 0:02:09]} 22. Re3 {[%emt 0:04:01]} Rfe8 {[%emt 0:10:05]} 23. Rfe1 {[%emt 0:02:58]} Re6 {[%emt 0:07:30]} 24. Rf3 {[%emt 0:01:18]} Be4 {[%emt 0:06:03]} 25. Rg3 {[%emt 0:03:23]} Kh7 {[%emt 0:01:46]} 26. Rd1 {[%emt 0:03:48]} Qe7 {[%emt 0:03:10]} 27. Rh3 {[%emt 0:00:01]} Rc8 {[%emt 0:03:10]} 28. Qe3 {[%emt 0:06:44]} Kg8 {[%emt 0:04:18]} 29. Rg3 {[%emt 0:00:22]} Kh8 {[%emt 0:01:19]} 30. Rh3 {[%emt 0:02:02]} Bf5 {[%emt 0:01:47]} 31. Bg5 $2 {[%emt 0:01:35]} (31. Bxh6 Bxh3 (31... gxh6 32. Ng6+ Rxg6 33. Rxh6+ Rxh6 34. Qxe7 $17) 32. Bg5) 31... Qe8 {[%emt 0:03:11]} 32. Rh4 {[%emt 0:01:35]} (32. g4 $142 Rxe5 (32... Qxa4 $2 33. b3 $18) (32... Bxg4 $2 33. Bf6 $19) 33. Qxe5 Qxe5 34. dxe5 Bxg4 35. Rdd3) 32... Bxd4 {[%emt 0:01:31]} (32... Qxa4 33. b3 Qe8 34. Bxh6 gxh6 35. Rxh6+ Kg8 36. Qg5+ Bg6 37. Rf1 $19) 33. Qxd4 {[%emt 0:00:24]} Rxe5 {[%emt 0:00:17]} 34. h3 {[%emt 0:01:03]} Rc4 $2 {[%emt 0:04:09]} (34... Bc2 $1 $19 {[%cal Rc2d1] is more deadly.} 35. Rxh6+ (35. Bf4 $2 Re4 $19) 35... Kg8 (35... gxh6 36. Re1 $11)) 35. Qb6 $2 {[%emt 0:00:14]} (35. Qxc4 $17 dxc4 36. Rd8) 35... Rxh4 $1 $19 {[%emt 0:00:36]} (35... Qxa4 $2 36. Rxh6+ Kg8 37. b3 $18) 36. Bxh4 {[%emt 0:00:07]} Qxa4 {[%emt 0:00:24]} 37. Rd4 {[%emt 0:00:44]} Qc6 {[%emt 0:01:07]} 38. Qxa5 {[%emt 0:00:37]} Kh7 {[%emt 0:00:47]} (38... Qc1+ $17 39. Kh2 Re1 (39... Qxb2 40. Rxd5 Rxd5 41. Qxd5 $17) 40. Qxd5 Be6 (40... Qxb2 41. Qc5 $15) 41. Qxb7 g5 42. Rd8+ Kg7) 39. Qd2 {[%emt 0:00:29]} Qe6 {[%emt 0:00:36]} 40. Bg3 {[%emt 0:01:24]} Re2 {[%emt 0:04:48]} 41. Qb4 {[%emt 0:00:40]} ({Better is} 41. Qa5) 41... Be4 {[%emt 0:00:00]} (41... Re1+ $1 $17 42. Kh2 Qe2 43. Rxd5 Qf1 44. Qxe1 Qxe1 45. Rxf5 Qe8) 42. Rd1 {[%emt 0:01:12]} Qc6 {[%emt 0:00:00]} 43. Qd4 {[%emt 0:01:08]} Rc2 {[%emt 0:00:00]} 44. Be5 {[%emt 0:00:39]} (44. Re1 $142) 44... f6 $17 {[%emt 0:00:00]} 45. Bg3 {[%emt 0:00:07]} Qb5 {[%emt 0:00:00]} 46. f3 {[%emt 0:00:38] [#]} (46. Bf4 $17) 46... Bg6 $2 {[%emt 0:00:00]} ({Black should try} 46... Rxg2+ $1 $19 47. Kxg2 Qe2+ 48. Bf2 (48. Kg1 $2 Qxf3 49. Rd2 Qxg3+ 50. Kf1 Qxh3+ 51. Ke1 h5 $19) 48... Bxf3+ 49. Kg3 Qxd1 50. Qxd1 Bxd1) 47. b4 {[%emt 0:00:18]} Qe2 {[%emt 0:00:49]} (47... Bf7 {simplifies} 48. Qd3+ Qxd3 49. Rxd3 Rc4) 48. Bf2 {[%emt 0:00:08]} Rb2 {[%emt 0:00:45]} (48... Qc4 $15) 49. Re1 $1 $11 {[%emt 0:00:28]} Qd2 {[%emt 0:00:34]} (49... Qc2 {is more complex.} 50. Re7 b5 51. g4 Kh8) 50. Qxd2 {[%emt 0:00:09]} Rxd2 {[%emt 0:00:01]} 51. Re7 {[%emt 0:00:58]} d4 {[%emt 0:00:52]} 52. Rxb7 {[%emt 0:00:21]} d3 {[%emt 0:00:05]} 53. Rd7 {[%emt 0:01:03]} Rb2 {[%emt 0:00:56]} (53... Be8 $1 $15 54. Rd6 Bb5) 54. Be1 $11 {[%emt 0:00:51]} Rb1 {[%emt 0:00:37]} 55. Kf2 {[%emt 0:00:10]} Rb2+ {[%emt 0:00:02]} 56. Kf1 {[%emt 0:00:44]} (56. Kg1 $11) 56... Be8 $1 $15 {[%emt 0:00:42]} 57. Rd5 {[%emt 0:00:23]} (57. Rxd3 $2 {too greedy.} Bb5 58. Kg1 Bxd3 $19) 57... Bc6 $1 {[%emt 0:00:13]} 58. Rd6 {[%emt 0:00:43]} (58. Rxd3 $2 {perishes.} Bb5 59. Kg1 Bxd3 $19) 58... Bb5 {[%emt 0:00:05]} 59. Kg1 {[%emt 0:00:08]} Re2 {[%emt 0:00:37]} 60. Bc3 {[%emt 0:00:09]} Rc2 {[%emt 0:00:13]} 61. Be1 {[%emt 0:00:28]} Re2 {[%emt 0:00:14]} (61... Kg6 $15 {is more appropriate.}) 62. Bc3 $11 {[%emt 0:00:08] [#]} Re4 $2 {[%emt 0:04:15][%mdl 8192]} (62... g5 $1 $11) 1/2-1/2

[Event "50th La Roda Open 2024"]
[Site "La Roda"]
[Date "2024.03.30"]
[Round "7.7"]
[White "Vehi Bach, Victor Manuel"]
[Black "Karthik Venkataraman"]
[Result "0-1"]
[ECO "B90"]
[WhiteElo "2211"]
[BlackElo "2609"]
[Annotator "TA"]
[PlyCount "90"]
[EventDate "2024.03.27"]
[EventType "swiss"]
[EventCountry "ESP"]
[SourceTitle "playchess.com"]
[Source "ChessBase"]
[SourceQuality "1"]
[TimeControl "5400+30"]

{[%evp 12,90,7,3,17,14,16,0,0,13,14,0,8,11,14,17,15,9,10,0,0,0,0,-13,-19,-21,-29,-32,74,65,55,54,87,-21,-19,-24,0,-13,-9,-11,-23,-17,-15,-25,0,0,0,0,0,0,0,0,0,-7,-5,-19,-16,-77,-56,-123,-111,-137,-127,-170,-166,-146,-120,-117,-109,-153,-142,-258,-254,-254,-250,-350,-344,-350,-334,-319,-312]} 1. e4 {[%emt 0:00:03]} c5 {[%emt 0:00:57]} 2. Nf3 {[%emt 0:00:19]} d6 {[%emt 0:00:07]} 3. d4 {[%emt 0:00:07]} cxd4 {[%emt 0:00:04]} 4. Nxd4 {[%emt 0:00:05]} Nf6 {[%emt 0:00:03]} 5. Nc3 {[%emt 0:00:07]} a6 {[%emt 0:00:03]} 6. h3 {[%emt 0:00:16]} e5 {[%emt 0:00:06]} 7. Nb3 {[%emt 0:00:32]} h6 {[%emt 0:00:11]} 8. Be3 {[%emt 0:05:28]} Be7 {[%emt 0:00:23]} 9. g4 {[%emt 0:03:49]} Be6 {[%emt 0:00:15] The position is equal.} 10. Qf3 {[%emt 0:03:01]} Nbd7 {[%emt 0:00:07][%cal Bb8d7,Bd7f8,Bf8g6,Bg6f4,Bf4e6][%mdl 32]} 11. O-O-O {[%emt 0:00:17]} Rc8 {[%emt 0:02:18][%cal Oc8c3]} 12. Nd5 {[%emt 0:07:40]} Nf8 {[%emt 0:00:56]} 13. Kb1 {[%emt 0:19:19]} Ng6 {[%emt 0:00:20]} 14. Nxe7 {[%emt 0:14:55]} Qxe7 {[%emt 0:01:15]} 15. g5 {[%emt 0:02:05]} hxg5 {[%emt 0:03:02]} 16. Bxg5 {[%emt 0:00:08]} Qc7 {[%emt 0:01:32]} 17. Bd3 {[%emt 0:03:13]} Nh5 {[%emt 0:00:53]} 18. h4 {[%emt 0:08:56]} Ngf4 {[%emt 0:01:56]} 19. Nc1 {[%emt 0:11:12]} Bc4 {[%emt 0:39:24]} (19... d5 $15 {stays ahead.}) 20. Bxc4 $16 {[%emt 0:03:30]} Qxc4 {[%emt 0:00:05]} 21. Rd2 {[%emt 0:01:54]} Ne6 {[%emt 0:02:36]} 22. Qd3 {[%emt 0:10:40]} (22. Ne2 $16) 22... Qxd3 $11 {[%emt 0:02:22]} 23. Nxd3 {[%emt 0:00:01]} g6 {[%emt 0:09:43]} (23... f6 $5 24. Be3 $8 Ke7 $11) 24. c3 {[%emt 0:00:21]} f6 {[%emt 0:02:10]} 25. Be3 {[%emt 0:00:05]} Ke7 {[%emt 0:00:01]} 26. Nb4 {[%emt 0:00:34]} Nhf4 {[%emt 0:01:17]} 27. f3 {[%emt 0:01:12]} Rh5 {[%emt 0:00:24]} 28. Rhd1 $1 {[%emt 0:00:35]} Rd8 $36 {[%emt 0:02:02][%mdl 2048] Black has some pressure.} 29. Bf2 {[%emt 0:00:10]} g5 {[%emt 0:03:10]} 30. hxg5 {[%emt 0:00:21]} fxg5 {[%emt 0:00:11]} 31. Bb6 {[%emt 0:01:36]} Rd7 {[%emt 0:00:01]} 32. Nd5+ {[%emt 0:01:20]} Nxd5 {[%emt 0:00:10]} 33. exd5 {[%emt 0:00:15]} Nf4 {[%emt 0:00:17]} 34. Be3 {[%emt 0:00:01]} (34. Rf1 $11 {remains equal.}) 34... Rh3 {[%emt 0:00:35]} 35. Bxf4 {[%emt 0:00:33]} ({White should try} 35. Rf1 $15) 35... gxf4 $15 {[%emt 0:00:05][%mdl 4096] Endgame. KRR-KRR} 36. Rf2 {[%emt 0:00:08] [#]} Kf6 $1 {[%emt 0:00:38]} 37. c4 {[%emt 0:00:39]} Rc7 {[%emt 0:00:21]} 38. b3 {[%emt 0:00:03]} b6 {[%emt 0:00:36]} 39. Kc2 {[%emt 0:00:11]} Rch7 {[%emt 0:00:09] Black is more active.} 40. b4 {[%emt 0:01:06][%cal Oc4c5]} Rc7 {[%emt 0:02:13]} 41. Kd3 {[%emt 0:00:29] [#]} (41. Kc3 $17) 41... Kf5 $1 $19 {[%emt 0:00:01]} 42. Re1 {[%emt 0:00:31]} b5 {[%emt 0:00:23]} 43. Re4 {[%emt 0:01:09]} Rh1 {[%emt 0:00:28] Black has a decisive advantage.} 44. Rc2 {[%emt 0:01:38]} Rd1+ {[%emt 0:00:49]} 45. Ke2 {[%emt 0:00:03]} Rxd5 {[%emt 0:00:06] Weighted Error Value: White=0.17 (very precise) /Black=0.09 (flawless) .  Mistake:       	White=4     	Black=1      Inaccurate:     	White=3     	Black=1      OK:         	White=9     	Black=23     Best:        	White=3     	Black=3      Strong:       	White=1     	Black=1} 0-1

[Event "50th La Roda Open 2024"]
[Site "La Roda"]
[Date "2024.03.30"]
[Round "7.8"]
[White "Pranav Vijay"]
[Black "Bustos Bernardo, Samuel"]
[Result "1-0"]
[ECO "C90"]
[WhiteElo "2252"]
[BlackElo "2188"]
[Annotator "RC"]
[PlyCount "113"]
[EventDate "2024.03.27"]
[EventType "swiss"]
[EventCountry "ESP"]
[SourceTitle "playchess.com"]
[Source "ChessBase"]
[SourceQuality "1"]
[TimeControl "5400+30"]

1. e4 {[%emt 0:04:18]} e5 {[%emt 0:00:07]} 2. Nf3 {[%emt 0:00:06]} Nc6 {[%emt 0:00:07]} 3. Bb5 {[%emt 0:00:08]} a6 {[%emt 0:00:10]} 4. Ba4 {[%emt 0:00:05]} Nf6 {[%emt 0:00:07]} 5. O-O {[%emt 0:00:05]} Be7 {[%emt 0:00:10]} 6. d3 {[%emt 0:00:09]} b5 {[%emt 0:00:10]} 7. Bb3 {[%emt 0:00:05]} d6 {[%emt 0:00:11]} 8. c3 {[%emt 0:01:26]} Na5 {[%emt 0:03:08]} 9. Bc2 {[%emt 0:00:18]} c5 {[%emt 0:00:11]} 10. Re1 {[%emt 0:00:58]} O-O {[%emt 0:00:33]} 11. Nbd2 {[%emt 0:00:17]} Nc6 {[%emt 0:00:29]} 12. Nf1 {[%emt 0:00:20]} Re8 {[%emt 0:00:45]} 13. a4 {[%emt 0:02:24]} Bd7 {[%emt 0:04:28]} 14. h3 {[%emt 0:02:51]} h6 {[%emt 0:00:58]} 15. Ng3 {[%emt 0:07:52]} Bf8 {[%emt 0:02:14]} 16. Nh2 {[%emt 0:11:03]} b4 {[%emt 0:14:42]} 17. Ng4 {[%emt 0:07:11]} Be6 {[%emt 0:08:03]} 18. Nxf6+ {[%emt 0:07:41]} Qxf6 {[%emt 0:00:20]} 19. Nh5 {[%emt 0:00:04]} Qh4 {[%emt 0:07:34]} 20. Qf3 {[%emt 0:04:14]} Rad8 {[%emt 0:01:41]} 21. a5 {[%emt 0:00:57]} b3 {[%emt 0:07:18]} 22. Bd1 {[%emt 0:00:06]} Rb8 {[%emt 0:00:53]} 23. Be2 {[%emt 0:06:40]} Be7 {[%emt 0:08:08]} 24. Ng3 {[%emt 0:04:35]} g6 {[%emt 0:02:40]} 25. Bd2 {[%emt 0:00:26]} Bg5 {[%emt 0:02:43]} 26. Nf1 {[%emt 0:02:10]} Bxd2 {[%emt 0:01:26]} 27. Nxd2 {[%emt 0:00:02]} Rf8 {[%emt 0:04:10]} 28. Nc4 {[%emt 0:02:43]} Qd8 {[%emt 0:00:28]} 29. Ne3 {[%emt 0:02:20]} Kg7 {[%emt 0:01:36]} 30. Qg3 {[%emt 0:02:32]} Kh7 {[%emt 0:03:46]} 31. h4 {[%emt 0:04:09]} f5 {[%emt 0:03:36]} 32. h5 {[%emt 0:00:12]} Rg8 {[%emt 0:00:07]} 33. Qh3 {[%emt 0:00:57]} gxh5 {[%emt 0:04:01]} 34. Bxh5 {[%emt 0:01:37]} Qg5 {[%emt 0:09:24]} 35. exf5 {[%emt 0:00:24]} Bd7 {[%emt 0:00:29]} 36. Bf3 {[%emt 0:09:11]} Ne7 {[%emt 0:02:35]} 37. Be4 {[%emt 0:00:22]} Kh8 {[%emt 0:00:21]} 38. Kf1 {[%emt 0:01:17]} d5 {[%emt 0:01:03]} 39. Nxd5 {[%emt 0:00:38]} Nxf5 {[%emt 0:00:47]} 40. Qh2 {[%emt 0:00:22]} Nd6 {[%emt 0:02:21]} 41. Bf3 {[%emt 0:01:15]} Rbe8 {[%emt 0:00:40]} 42. Qh5 {[%emt 0:01:38]} Bc6 {[%emt 0:03:10]} 43. Qxg5 {[%emt 0:02:13]} Rxg5 {[%emt 0:00:01]} 44. Ne3 {[%emt 0:03:06]} e4 {[%emt 0:01:50]} 45. dxe4 {[%emt 0:00:01]} Bxe4 {[%emt 0:00:12]} 46. Rad1 {[%emt 0:04:06]} Bxf3 {[%emt 0:00:41]} 47. Rxd6 {[%emt 0:01:55]} Rxg2 {[%emt 0:01:14]} 48. Rxh6+ {[%emt 0:01:14]} Kg7 {[%emt 0:00:01]} 49. Nf5+ {[%emt 0:00:27]} Kf7 {[%emt 0:00:54]} 50. Rxe8 {[%emt 0:00:24]} Kxe8 {[%emt 0:00:07]} 51. Nh4 {[%emt 0:00:12]} Rh2 {[%emt 0:00:35]} 52. Re6+ {[%emt 0:00:04]} Kd7 {[%emt 0:00:16]} 53. Nxf3 {[%emt 0:00:04]} Rh1+ {[%emt 0:01:47]} 54. Kg2 {[%emt 0:00:04]} Rc1 {[%emt 0:00:54]} 55. Rxa6 {[%emt 0:00:06]} Rc2 {[%emt 0:00:15]} 56. Ne5+ {[%emt 0:00:03]} Kc7 {[%emt 0:00:11]} 57. Nc4 {[%emt 0:00:05]} 1-0

[Event "50th La Roda Open 2024"]
[Site "La Roda"]
[Date "2024.03.30"]
[Round "7.9"]
[White "Admiraal, Miguoel"]
[Black "Portero Rubio, Martin"]
[Result "1/2-1/2"]
[ECO "B80"]
[WhiteElo "2471"]
[BlackElo "2067"]
[Annotator "TA"]
[PlyCount "99"]
[EventDate "2024.03.27"]
[EventType "swiss"]
[EventCountry "ESP"]
[SourceTitle "playchess.com"]
[Source "ChessBase"]
[SourceQuality "1"]
[TimeControl "5400+30"]

{[%evp 16,99,16,18,18,26,25,20,14,22,23,0,9,15,29,12,86,100,82,81,81,80,80,69,72,72,65,77,72,78,181,44,380,372,352,374,397,392,400,400,504,452,651,200,300,296,284,32,32,0,0,0,0,0,0,0,0,0,0,0,0,0,0,0,0,0,0,0,0,0,0,0,0,0,0,0,0,0,0,0,0,0,0,0,0,0]} 1. e4 {[%emt 0:00:04]} c5 {[%emt 0:00:03]} 2. Ne2 {[%emt 0:00:26]} Nf6 {[%emt 0:00:29]} 3. Nbc3 {[%emt 0:00:17]} d6 {[%emt 0:01:00]} 4. g3 {[%emt 0:00:18]} e6 {[%emt 0:03:26]} 5. Bg2 {[%emt 0:00:08]} Be7 {[%emt 0:00:29]} 6. O-O {[%emt 0:00:20]} O-O {[%emt 0:01:11]} 7. d4 {[%emt 0:08:10]} cxd4 {[%emt 0:00:14]} 8. Nxd4 {[%emt 0:00:04]} a6 {[%emt 0:03:54]} 9. Be3 {[%emt 0:03:43]} Bd7 {[%emt 0:04:48]} 10. f4 {[%emt 0:02:43]} Nc6 {[%emt 0:02:40]} 11. Nb3 {[%emt 0:00:35]} b5 {[%emt 0:16:25]} 12. a3 {[%emt 0:00:08]} Rc8 {[%emt 0:02:44]} 13. g4 {[%emt 0:02:09]} e5 {[%emt 0:02:11]} 14. f5 {[%emt 0:02:03] And now g5 would win.} h6 {[%emt 0:01:17]} 15. Kh1 {[%emt 0:25:04]} Na5 {[%emt 0:02:46]} (15... a5 $11 {keeps the balance.}) 16. Nxa5 $16 {[%emt 0:07:19]} Qxa5 {[%emt 0:00:16]} 17. g5 {[%emt 0:00:16]} hxg5 {[%emt 0:02:05]} 18. Bxg5 {[%emt 0:00:07]} Rxc3 {[%emt 0:11:49]} 19. bxc3 {[%emt 0:10:13]} Qxc3 {[%emt 0:01:28]} 20. Bxf6 {[%emt 0:02:07]} Bxf6 {[%emt 0:01:12]} 21. Qxd6 {[%emt 0:00:09]} Rd8 {[%emt 0:06:23]} 22. Rad1 {[%emt 0:13:31]} a5 {[%emt 0:07:04]} (22... Qc8 $16) 23. Qd2 {[%emt 0:02:31]} (23. Qb6 $1 $18) 23... Qxa3 {[%emt 0:01:25][%mdl 8192]} (23... Qc7 $1 $14) 24. Rf3 $18 {[%emt 0:01:14]} Qb2 {[%emt 0:14:53]} 25. Rd3 {[%emt 0:02:28]} (25. Qxa5 Qxc2 26. Rfd3 b4 27. Qxb4 (27. Rxd7 $2 Rxd7 28. Rf1 b3 $19) 27... Be8 28. Rxd8 Bxd8 $16) 25... a4 {[%emt 0:04:46]} 26. Rxd7 {[%emt 0:00:22]} Rxd7 {[%emt 0:00:20]} 27. Qxd7 {[%emt 0:00:03]} a3 {[%emt 0:00:19][%cal Oa3a2]} 28. Bf1 {[%emt 0:11:18] aiming for Qe8+.} a2 {[%emt 0:02:11]} (28... Qxc2 $142 29. Qd3 (29. Bxb5 $2 Qxe4+ 30. Kg1 Qg4+ 31. Kf2 Bh4+ 32. Ke3 Bg5+ 33. Kf2 e4 $19) 29... Qc6 30. Qxa3 Qxe4+ 31. Bg2 Qa4 32. Qxa4 bxa4) 29. Qe8+ {[%emt 0:02:24]} (29. Bxb5 a1=Q (29... a1=B 30. Bc4) 30. Bc4 Kh8 31. Rxa1 (31. Bxf7 $2 Qa8 $19) 31... Qxa1+ 32. Kg2 Qe1 $11) (29. Rd3 $142 {Threatening mate with Qe8+.} Qb4 (29... a1=Q 30. Qe8+ Kh7 31. Rh3+) 30. Qe8+ Qf8 31. Qxf8+ (31. Qxb5 $2 a1=Q $19) 31... Kxf8 32. Ra3) 29... Kh7 {[%emt 0:00:02] [#]} 30. Rd3 $1 {[%emt 0:00:19]} (30. Bxb5 $2 {loses.} Qxc2 31. Re1 Qb1 $19) (30. Qxf7 a1=Q 31. Rxa1 Qxa1 32. Qg6+ Kg8 33. Qe8+ Kh7 34. Qxb5 Qc1 $14) 30... Bg5 {[%emt 0:01:16] [#]} 31. Qxf7 $2 {[%emt 0:02:20]} ({Only move:} 31. Rh3+ $1 $18 Bh6 32. Rxh6+ (32. Bxb5 {is a self mate.} a1=Q+ 33. Kg2 Qxc2+ 34. Kf3 Qad1+) 32... Kxh6 33. Qxf7) 31... Qc1 $1 $14 {[%emt 0:02:23][%cal Rc1f1]} ({Inferior is} 31... a1=Q 32. Rh3+ Bh6 33. Rxh6+ Kxh6 34. Qg6#) 32. Rh3+ {[%emt 0:01:18]} Bh6 {[%emt 0:00:01] The position is equal.} 33. Rxh6+ {[%emt 0:00:16]} Qxh6 {[%emt 0:00:02]} 34. Qxa2 {[%emt 0:00:16]} Qc1 $1 {[%emt 0:00:43]} 35. Kg2 {[%emt 0:00:30]} Qd2+ {[%emt 0:00:33]} 36. Kf3 {[%emt 0:00:38]} Qf4+ {[%emt 0:02:40]} 37. Ke2 {[%emt 0:00:00]} Qxh2+ {[%emt 0:01:13]} 38. Kd1 {[%emt 0:02:49]} Qh1 {[%emt 0:00:49]} 39. Ke1 {[%emt 0:00:25]} Qh4+ {[%emt 0:01:17]} 40. Kd2 {[%emt 0:00:21]} Qf4+ {[%emt 0:00:14]} 41. Kc3 {[%emt 0:00:55]} Qxf1 $11 {[%emt 0:00:31][%mdl 4096] Endgame. KQ-KQ} 42. Kb4 {[%emt 0:00:37]} Qe1+ {[%emt 0:00:47]} 43. Kxb5 {[%emt 0:00:08] Hoping for Qc4.} Qxe4 {[%emt 0:00:09]} 44. Qe6 {[%emt 0:00:43]} Qxc2 {[%emt 0:00:55]} 45. Qg6+ {[%emt 0:00:14]} Kg8 {[%emt 0:00:04]} 46. Qe8+ {[%emt 0:00:32]} Kh7 {[%emt 0:00:01]} 47. Qh5+ {[%emt 0:00:10]} Kg8 {[%emt 0:00:02]} 48. Qe8+ {[%emt 0:00:06]} Kh7 {[%emt 0:00:22]} 49. Qg6+ {[%emt 0:00:17]} Kg8 {[%emt 0:00:27]} 50. Qe8+ {[%emt 0:00:06] Black escapes into a draw.   Weighted Error Value: White=0.24 (precise) /Black=0.34.  Loses game:     	---       	Black=1      Missed win:     	White=1     	---        Mistake:       	White=2     	Black=3      Inaccurate:     	White=1     	Black=1      OK:         	White=20    	Black=15     Best:        	White=2     	Black=4      Strong:       	---       	Black=2} 1/2-1/2

[Event "50th La Roda Open 2024"]
[Site "La Roda"]
[Date "2024.03.30"]
[Round "7.10"]
[White "Lopez Nunez, Alonso"]
[Black "Fernandez Barrera, Victor"]
[Result "1/2-1/2"]
[ECO "B10"]
[WhiteElo "1993"]
[BlackElo "2249"]
[Annotator "RC"]
[PlyCount "69"]
[EventDate "2024.03.27"]
[EventType "swiss"]
[EventCountry "ESP"]
[SourceTitle "playchess.com"]
[Source "ChessBase"]
[SourceQuality "1"]
[TimeControl "5400+30"]

1. e4 {[%emt 0:00:02]} c6 {[%emt 0:00:08]} 2. Nf3 {[%emt 0:00:14]} d5 {[%emt 0:00:05]} 3. d3 {[%emt 0:00:04]} Bg4 {[%emt 0:03:58]} 4. h3 {[%emt 0:00:44]} Bxf3 {[%emt 0:00:35]} 5. Qxf3 {[%emt 0:00:06]} e6 {[%emt 0:00:14]} 6. g3 {[%emt 0:00:08]} Nd7 {[%emt 0:00:53]} 7. Bg2 {[%emt 0:00:11]} Ngf6 {[%emt 0:00:25]} 8. O-O {[%emt 0:00:38]} Qb6 {[%emt 0:05:37]} 9. Qe2 {[%emt 0:02:06]} dxe4 {[%emt 0:10:58]} 10. dxe4 {[%emt 0:00:32]} e5 {[%emt 0:00:09]} 11. Nd2 {[%emt 0:02:15]} Qc7 {[%emt 0:15:16]} 12. a4 {[%emt 0:00:12]} Nc5 {[%emt 0:03:57]} 13. Nc4 {[%emt 0:03:07]} Nfd7 {[%emt 0:07:06]} 14. Bd2 {[%emt 0:06:40]} Ne6 {[%emt 0:01:31]} 15. Be3 {[%emt 0:07:27]} Bc5 {[%emt 0:04:43]} 16. c3 {[%emt 0:01:46]} Bxe3 {[%emt 0:02:23]} 17. Nxe3 {[%emt 0:00:23]} O-O {[%emt 0:01:01]} 18. Qc2 {[%emt 0:00:12]} a5 {[%emt 0:02:15]} 19. h4 {[%emt 0:06:57]} Nf6 {[%emt 0:12:25]} 20. Nc4 {[%emt 0:05:30]} Rfd8 {[%emt 0:01:07]} 21. Rfd1 {[%emt 0:00:05]} Nc5 {[%emt 0:02:04]} 22. Kf1 {[%emt 0:06:04]} h5 {[%emt 0:02:17]} 23. Ke2 {[%emt 0:03:25]} Rxd1 {[%emt 0:04:23]} 24. Rxd1 {[%emt 0:00:28]} Nxa4 {[%emt 0:01:23]} 25. Qxa4 {[%emt 0:02:57]} b5 {[%emt 0:00:01]} 26. Qa2 {[%emt 0:00:26]} bxc4 {[%emt 0:00:04]} 27. Qxc4 {[%emt 0:01:41]} Qb6 {[%emt 0:00:04]} 28. Rd2 {[%emt 0:01:23]} Ng4 {[%emt 0:04:51]} 29. Ke1 {[%emt 0:01:22]} a4 {[%emt 0:01:00]} 30. Bf3 {[%emt 0:08:01]} Nf6 {[%emt 0:04:01]} 31. Bd1 {[%emt 0:05:28]} Qb5 {[%emt 0:07:33]} 32. Qxb5 {[%emt 0:35:56]} cxb5 33. f3 {[%emt 0:00:00]} Kf8 {[%emt 0:04:33]} 34. Be2 {[%emt 0:01:00]} Rb8 {[%emt 0:00:30]} 35. Rd6 {[%emt 0:00:30]} 1/2-1/2